[Event "30th NATO Chess-ch 2019"]
[Site "Berlin"]
[Date "2019.09.17"]
[Round "3.2"]
[White "Helbig, Mark"]
[Black "Graczyk, Damian"]
[Result "0-1"]
[ECO "A25"]
[WhiteElo "2332"]
[BlackElo "2133"]
[Annotator "ChessBase"]
[PlyCount "96"]
[EventDate "2019.09.16"]
[EventType "swiss"]
[EventCountry "GER"]
[SourceTitle "playchess.com"]
[Source "ChessBase"]
[SourceQuality "1"]
[TimeControl "40/7200:1800"]

1. c4 {[%emt 1:59:03]} e5 {[%emt 1:59:03]} 2. Nc3 {[%emt 1:58:16]} Nc6 {[%emt 1:58:16]} 3. g3 {[%emt 1:58:45]} f5 {[%emt 1:58:39]} 4. Bg2 {[%emt 1:57:03]} Nf6 {[%emt 1:58:37]} 5. e3 {[%emt 1:55:23]} d5 {[%emt 1:57:41]} 6. cxd5 {[%emt 1:48:53]} Nb4 {[%emt 1:57:39]} 7. d3 {[%emt 1:57:39]} Nfxd5 {[%emt 1:56:18]} 8. Nxd5 {[%emt 1:47:13]} Nxd5 {[%emt 1:56:15]} 9. a3 {[%emt 1:46:20]} Nf6 {[%emt 1:55:30]} 10. Nf3 {[%emt 1:36:41]} Bd6 {[%emt 1:53:40]} 11. O-O {[%emt 1:35:04]} Qe7 {[%emt 1:53:14]} 12. e4 {[%emt 1:53:14]} fxe4 {[%emt 1:23:50]} 13. dxe4 {[%emt 1:23:50]} O-O {[%emt 1:31:52]} 14. Qc2 {[%emt 1:30:20]} Kh8 {[%emt 1:30:20]} 15. Nh4 {[%emt 1:22:22]} c6 {[%emt 1:20:58]} 16. Bg5 {[%emt 1:23:25]} Bc5 {[%emt 1:16:53]} 17. Rad1 {[%emt 1:03:40]} Bd4 {[%emt 1:07:11]} 18. Qe2 {[%emt 0:45:26]} Qf7 {[%emt 1:04:28]} 19. Nf3 {[%emt 0:35:38]} Bg4 {[%emt 0:35:38]} 20. h3 {[%emt 0:59:00]} Bxf3 {[%emt 0:27:42]} 21. Bxf3 {[%emt 0:51:22]} Nd7 {[%emt 0:38:47]} 22. Bg2 {[%emt 0:20:55]} Nc5 {[%emt 0:20:55]} 23. Kh2 {[%emt 0:38:28]} Ne6 {[%emt 0:17:58]} 24. Bc1 {[%emt 0:28:07]} Qc7 {[%emt 0:17:32]} 25. Qg4 {[%emt 0:23:09]} Nc5 {[%emt 0:14:23]} 26. b4 {[%emt 0:05:43]} Nb3 {[%emt 0:11:53]} 27. Be3 {[%emt 0:05:34]} a5 {[%emt 0:11:51]} 28. Rd3 {[%emt 0:04:26]} a4 {[%emt 0:04:26]} 29. f4 {[%emt 0:03:50]} c5 {[%emt 0:10:26]} 30. bxc5 {[%emt 0:03:44]} Qxc5 {[%emt 0:08:49]} 31. Bxd4 {[%emt 0:08:49]} exd4 {[%emt 0:08:34]} 32. e5 {[%emt 0:03:07]} Qxa3 {[%emt 0:03:07]} 33. f5 {[%emt 0:03:01]} Qe7 {[%emt 0:03:01]} 34. Qf4 {[%emt 0:06:13]} Nc5 {[%emt 0:02:26]} 35. Rxd4 {[%emt 0:02:07]} Ne6 {[%emt 0:04:03]} 36. Qh4 {[%emt 0:01:57]} Qxh4 37. Rxh4 {[%emt 0:01:56]} a3 {[%emt 0:01:56]} 38. Rc4 {[%emt 0:01:14]} a2 {[%emt 0:01:53]} 39. Rcc1 {[%emt 0:00:57]} Nd4 {[%emt 0:00:57]} 40. Bxb7 {[%emt 0:00:10]} Rab8 {[%emt 0:00:05]} 41. Bd5 {[%emt 0:21:41]} Rb2+ {[%emt 0:27:18]} 42. Bg2 {[%emt 0:27:18]} Nb3 {[%emt 0:18:51]} 43. Rcd1 {[%emt 0:13:03]} Ra8 {[%emt 0:17:03]} 44. e6 {[%emt 0:10:55]} a1=Q {[%emt 0:12:37]} 45. Rxa1 {[%emt 0:08:54]} Rxa1 {[%emt 0:09:45]} 46. Rxa1 {[%emt 0:05:14]} Nxa1 {[%emt 0:09:37]} 47. g4 {[%emt 0:05:07]} Kg8 {[%emt 0:09:12]} 48. g5 {[%emt 0:04:55]} Rf2 {[%emt 0:04:55]} 0-1

[Event "30th NATO Chess-ch 2019"]
[Site "Berlin"]
[Date "2019.09.17"]
[Round "3.3"]
[White "Binder, Tamas"]
[Black "Bohn, Ulrich"]
[Result "1-0"]
[ECO "A45"]
[WhiteElo "2261"]
[BlackElo "2157"]
[Annotator "NA"]
[PlyCount "80"]
[EventDate "2019.09.16"]
[EventType "swiss"]
[EventCountry "GER"]
[SourceTitle "playchess.com"]
[Source "ChessBase"]
[SourceQuality "1"]
[TimeControl "40/7200:1800"]

1. d4 {[%emt 1:59:56]} Nf6 {[%emt 1:59:53]} 2. c3 {[%emt 1:59:29]} b6 {[%emt 1:56:09]} 3. Bf4 {[%emt 1:58:07]} Bb7 {[%emt 1:55:33]} 4. e3 {[%emt 1:57:58]} d6 {[%emt 1:53:26]} 5. Nf3 {[%emt 1:56:16]} Nh5 {[%emt 1:56:16]} 6. Bg3 {[%emt 1:56:04]} Nxg3 {[%emt 1:40:50]} 7. hxg3 {[%emt 1:55:56]} Nd7 {[%emt 1:38:18]} 8. Qc2 {[%emt 1:55:36]} Nf6 {[%emt 1:55:36]} 9. Nbd2 {[%emt 1:28:07]} Qd7 {[%emt 1:19:41]} 10. a4 {[%emt 1:48:23]} a6 {[%emt 1:48:23]} 11. a5 {[%emt 1:17:59]} b5 {[%emt 1:13:40]} 12. c4 {[%emt 1:46:45]} e6 {[%emt 1:46:45]} 13. cxb5 {[%emt 0:56:42]} axb5 {[%emt 0:56:23]} 14. b4 {[%emt 1:43:59]} Nd5 {[%emt 0:41:41]} 15. Rb1 {[%emt 1:43:01]} f5 {[%emt 1:43:01]} 16. Bd3 {[%emt 0:39:29]} Nf6 {[%emt 0:37:04]} 17. O-O {[%emt 1:35:31]} Ra7 {[%emt 0:26:35]} 18. Rfc1 {[%emt 1:35:08]} Ba8 19. Qd1 {[%emt 1:33:59]} Be7 {[%emt 1:33:59]} 20. Qe2 {[%emt 1:33:47]} c6 {[%emt 1:33:47]} 21. e4 {[%emt 1:30:34]} O-O {[%emt 0:16:08]} 22. exf5 {[%emt 1:28:54]} exf5 {[%emt 0:16:01]} 23. Nf1 {[%emt 1:27:55]} f4 {[%emt 0:09:25]} 24. gxf4 {[%emt 1:26:02]} Nd5 {[%emt 0:09:22]} 25. g3 {[%emt 1:24:31]} Qh3 {[%emt 0:08:42]} 26. Be4 {[%emt 1:22:26]} c5 {[%emt 0:06:42]} 27. dxc5 {[%emt 1:19:43]} Rxf4 {[%emt 0:02:49]} 28. c6 {[%emt 1:18:50]} Rxe4 {[%emt 0:02:39]} 29. Qxe4 {[%emt 0:02:39]} Nf6 {[%emt 0:02:33]} 30. Qe3 {[%emt 1:17:29]} Rc7 {[%emt 1:17:29]} 31. Qb6 {[%emt 1:17:06]} Bd8 {[%emt 0:01:22]} 32. Qxb5 {[%emt 0:01:22]} h6 {[%emt 1:16:46]} 33. Qb8 {[%emt 1:16:05]} Rc8 {[%emt 0:00:59]} 34. Qxd6 {[%emt 1:15:54]} Kh8 {[%emt 0:00:52]} 35. b5 {[%emt 1:15:22]} Bc7 {[%emt 1:15:22]} 36. Qb4 {[%emt 0:00:48]} Ng4 {[%emt 1:14:30]} 37. b6 {[%emt 1:13:27]} Bxg3 {[%emt 0:00:33]} 38. fxg3 {[%emt 0:00:33]} Ne3 {[%emt 0:00:02]} 39. Nxe3 {[%emt 1:12:17]} Qxg3+ {[%emt 0:00:01]} 40. Ng2 Rf8 1-0

[Event "30th NATO Chess-ch 2019"]
[Site "Berlin"]
[Date "2019.09.17"]
[Round "3.4"]
[White "Stentebjerg-Hansen, Per"]
[Black "Papasimakopoulos, Alexandros"]
[Result "0-1"]
[ECO "D03"]
[WhiteElo "2178"]
[BlackElo "2218"]
[Annotator "ChessBase"]
[PlyCount "96"]
[EventDate "2019.09.16"]
[EventType "swiss"]
[EventCountry "GER"]
[SourceTitle "playchess.com"]
[Source "ChessBase"]
[SourceQuality "1"]
[TimeControl "40/7200:1800"]

1. d4 {[%emt 1:59:56]} Nf6 {[%emt 1:54:46]} 2. Nf3 {[%emt 1:54:46]} e6 {[%emt 1:59:50]} 3. Bg5 {[%emt 1:59:10]} c5 {[%emt 1:54:34]} 4. e3 {[%emt 1:50:10]} Qb6 {[%emt 1:54:26]} 5. Nbd2 {[%emt 1:49:46]} d5 {[%emt 1:49:46]} 6. Rb1 {[%emt 1:48:07]} Nc6 {[%emt 1:53:54]} 7. c3 {[%emt 1:53:54]} h6 {[%emt 1:46:30]} 8. Bh4 {[%emt 1:41:50]} Be7 {[%emt 1:37:19]} 9. Bd3 {[%emt 1:38:29]} O-O {[%emt 1:38:29]} 10. O-O {[%emt 1:34:55]} Re8 {[%emt 1:34:55]} 11. Qe2 {[%emt 1:34:18]} Nd7 {[%emt 1:32:56]} 12. Bxe7 {[%emt 1:28:34]} Rxe7 {[%emt 1:27:58]} 13. b4 {[%emt 1:23:53]} c4 {[%emt 1:26:04]} 14. Bc2 {[%emt 1:23:20]} f5 {[%emt 1:25:41]} 15. Ba4 {[%emt 1:19:03]} e5 {[%emt 1:21:31]} 16. Nxc4 {[%emt 1:09:44]} dxc4 {[%emt 1:20:24]} 17. Qxc4+ {[%emt 1:07:16]} Kh7 {[%emt 1:18:56]} 18. Bb3 {[%emt 1:04:46]} Nf6 {[%emt 1:04:46]} 19. b5 {[%emt 1:02:54]} Be6 {[%emt 1:17:19]} 20. Qe2 {[%emt 0:57:07]} e4 {[%emt 1:10:40]} 21. Bxe6 {[%emt 0:54:11]} Rxe6 {[%emt 0:54:11]} 22. bxc6 {[%emt 0:50:54]} exf3 {[%emt 0:50:54]} 23. Qxf3 {[%emt 1:07:12]} Qxc6 {[%emt 1:07:00]} 24. Qxf5+ {[%emt 1:07:00]} Kh8 {[%emt 1:06:39]} 25. Rxb7 {[%emt 0:45:29]} Qxb7 {[%emt 1:06:27]} 26. Qxe6 {[%emt 0:45:22]} Qb2 {[%emt 1:06:23]} 27. Qc6 {[%emt 0:41:26]} Rf8 {[%emt 1:01:13]} 28. h3 {[%emt 0:37:51]} Qxa2 {[%emt 1:01:07]} 29. c4 {[%emt 0:37:34]} Qc2 {[%emt 0:59:22]} 30. Qc5 {[%emt 0:36:00]} Rf7 {[%emt 0:59:07]} 31. f3 {[%emt 0:59:07]} Qe2 {[%emt 0:50:34]} 32. Qc8+ {[%emt 0:29:52]} Ng8 {[%emt 0:42:59]} 33. Rb1 {[%emt 0:23:18]} Qxe3+ {[%emt 0:23:18]} 34. Kh1 {[%emt 0:16:12]} Re7 {[%emt 0:38:12]} 35. d5 {[%emt 0:13:06]} Re8 {[%emt 0:13:06]} 36. Qf5 {[%emt 0:11:57]} Qd4 {[%emt 0:29:04]} 37. Rb7 {[%emt 0:09:25]} Nf6 {[%emt 0:18:48]} 38. Rc7 {[%emt 0:18:48]} g6 {[%emt 0:14:57]} 39. Qxg6 {[%emt 0:00:44]} Re1+ {[%emt 0:14:26]} 40. Kh2 {[%emt 0:00:40]} Qf4+ {[%emt 0:13:48]} 41. Qg3 {[%emt 0:28:26]} Rh1+ {[%emt 0:28:26]} 42. Kxh1 {[%emt 0:28:01]} Qxg3 {[%emt 0:42:33]} 43. Rxa7 {[%emt 0:27:40]} Qe1+ {[%emt 0:27:40]} 44. Kh2 {[%emt 0:27:27]} Qe5+ {[%emt 0:27:27]} 45. Kh1 {[%emt 0:27:11]} Nh5 {[%emt 0:27:11]} 46. Ra2 {[%emt 0:23:47]} Ng3+ {[%emt 0:40:03]} 47. Kh2 {[%emt 0:22:40]} Qf4 {[%emt 0:22:40]} 48. Ra6 {[%emt 0:39:07]} Ne2+ {[%emt 0:38:55]} 0-1

[Event "30th NATO Chess-ch 2019"]
[Site "Berlin"]
[Date "2019.09.17"]
[Round "3.5"]
[White "Cichy, Kamil"]
[Black "Wang, Eigen"]
[Result "0-1"]
[ECO "C15"]
[WhiteElo "2106"]
[BlackElo "2193"]
[Annotator "NA"]
[PlyCount "42"]
[EventDate "2019.09.16"]
[EventType "swiss"]
[EventCountry "GER"]
[SourceTitle "playchess.com"]
[Source "ChessBase"]
[SourceQuality "1"]
[TimeControl "40/7200:1800"]

1. e4 {[%emt 2:00:00]} e6 {[%emt 1:59:56]} 2. Nc3 {[%emt 1:59:56]} d5 {[%emt 1:59:50]} 3. d4 {[%emt 1:58:03]} Bb4 {[%emt 1:59:45]} 4. Bd3 {[%emt 1:59:45]} dxe4 {[%emt 1:59:31]} 5. Bxe4 {[%emt 1:55:23]} Nf6 {[%emt 1:59:27]} 6. Bf3 {[%emt 1:59:27]} O-O {[%emt 1:59:17]} 7. Nge2 {[%emt 1:45:56]} e5 {[%emt 1:45:56]} 8. dxe5 {[%emt 1:58:14]} Qxd1+ {[%emt 1:32:20]} 9. Kxd1 {[%emt 1:57:53]} Ng4 {[%emt 1:57:42]} 10. Bxg4 {[%emt 1:57:42]} Bxg4 {[%emt 1:57:35]} 11. Be3 {[%emt 1:23:36]} Nc6 {[%emt 1:23:36]} 12. f4 {[%emt 1:18:16]} f6 {[%emt 1:18:16]} 13. h3 {[%emt 1:11:42]} Rad8+ {[%emt 1:49:28]} 14. Kc1 {[%emt 1:09:53]} Bxe2 {[%emt 1:09:53]} 15. Nxe2 {[%emt 1:09:40]} fxe5 {[%emt 1:47:31]} 16. c3 {[%emt 0:59:57]} exf4 {[%emt 0:59:57]} 17. Nxf4 {[%emt 0:57:02]} Rfe8 {[%emt 0:57:02]} 18. Bd2 {[%emt 0:46:22]} Bc5 {[%emt 1:21:20]} 19. Rf1 {[%emt 0:41:01]} Ne5 {[%emt 1:11:31]} 20. Kc2 {[%emt 1:11:31]} Nc4 {[%emt 0:28:59]} 21. Rad1 {[%emt 0:27:53]} Rxd2+ {[%emt 0:27:53]} 0-1

[Event "30th NATO Chess-ch 2019"]
[Site "Berlin"]
[Date "2019.09.17"]
[Round "3.6"]
[White "Oltean, Gusztav"]
[Black "Mouroutis, Konstantinos"]
[Result "0-1"]
[ECO "D12"]
[WhiteElo "2053"]
[BlackElo "2181"]
[Annotator "ChessBase"]
[PlyCount "92"]
[EventDate "2019.09.16"]
[EventType "swiss"]
[EventCountry "GER"]
[SourceTitle "playchess.com"]
[Source "ChessBase"]
[SourceQuality "1"]
[TimeControl "40/7200:1800"]

1. d4 {[%emt 2:00:00]} d5 {[%emt 1:59:56]} 2. Nf3 {[%emt 1:59:45]} Nf6 {[%emt 1:59:46]} 3. e3 {[%emt 1:59:03]} Bf5 {[%emt 1:57:10]} 4. c4 {[%emt 1:55:28]} e6 {[%emt 1:52:41]} 5. Nc3 {[%emt 1:52:40]} c6 {[%emt 1:51:24]} 6. cxd5 {[%emt 1:43:59]} exd5 {[%emt 1:43:59]} 7. Bd3 {[%emt 1:43:45]} Bxd3 {[%emt 1:43:45]} 8. Qxd3 {[%emt 1:49:50]} Nbd7 {[%emt 1:49:00]} 9. O-O {[%emt 1:49:00]} Be7 {[%emt 1:45:01]} 10. e4 {[%emt 1:40:16]} dxe4 {[%emt 1:44:48]} 11. Nxe4 {[%emt 1:44:48]} O-O {[%emt 1:44:22]} 12. Nxf6+ {[%emt 1:38:04]} Nxf6 {[%emt 1:42:36]} 13. Bg5 {[%emt 1:36:06]} Re8 {[%emt 1:39:56]} 14. Rfd1 {[%emt 1:34:00]} Qd5 {[%emt 1:34:00]} 15. a3 {[%emt 1:38:23]} h6 {[%emt 1:22:32]} 16. Bh4 {[%emt 1:20:16]} Nh5 {[%emt 1:20:16]} 17. Bxe7 {[%emt 1:18:05]} Rxe7 {[%emt 1:34:17]} 18. Re1 {[%emt 1:34:17]} Rae8 {[%emt 1:33:43]} 19. Rxe7 {[%emt 1:33:43]} Rxe7 {[%emt 1:33:37]} 20. g3 {[%emt 1:33:37]} g6 {[%emt 1:13:26]} 21. Re1 {[%emt 1:25:37]} Rxe1+ {[%emt 1:23:23]} 22. Nxe1 {[%emt 1:11:23]} Ng7 {[%emt 1:21:39]} 23. b4 {[%emt 0:41:24]} Nf5 {[%emt 1:13:52]} 24. Nc2 {[%emt 1:13:52]} Kf8 {[%emt 0:38:07]} 25. f3 {[%emt 1:05:09]} h5 {[%emt 0:27:13]} 26. Kf2 {[%emt 1:03:26]} Qa2 {[%emt 0:26:02]} 27. Ke1 {[%emt 0:20:53]} Qb1+ {[%emt 1:01:40]} 28. Qd1 {[%emt 0:20:27]} Qb2 {[%emt 0:20:27]} 29. Qd2 {[%emt 1:01:08]} Ke7 {[%emt 0:56:56]} 30. g4 {[%emt 0:56:56]} hxg4 {[%emt 0:53:59]} 31. fxg4 {[%emt 0:14:46]} Nd6 {[%emt 0:14:46]} 32. Qe2+ {[%emt 0:08:37]} Kd7 {[%emt 0:51:44]} 33. Kf2 {[%emt 0:51:44]} Qc3 {[%emt 0:50:10]} 34. Kg2 {[%emt 0:07:26]} Nc4 {[%emt 0:07:26]} 35. Kg1 {[%emt 0:04:11]} Nxa3 {[%emt 0:48:23]} 36. Nxa3 {[%emt 0:03:26]} Qxa3 {[%emt 0:47:44]} 37. Qf2 {[%emt 0:02:53]} Ke7 {[%emt 0:02:53]} 38. Qe1+ {[%emt 0:02:25]} Kf8 {[%emt 0:45:10]} 39. Qe5 {[%emt 0:45:10]} Qxb4 {[%emt 0:43:36]} 40. g5 {[%emt 0:43:36]} a5 {[%emt 0:00:43]} 41. Qh8+ {[%emt 0:24:50]} Ke7 {[%emt 0:24:50]} 42. h4 {[%emt 0:16:11]} a4 {[%emt 1:06:29]} 43. h5 {[%emt 1:06:29]} Qe1+ {[%emt 1:03:25]} 44. Kg2 {[%emt 1:03:25]} Qe2+ {[%emt 0:11:10]} 45. Kg1 {[%emt 0:10:55]} gxh5 {[%emt 0:10:55]} 46. Qf6+ {[%emt 0:09:11]} Ke8 {[%emt 0:09:11]} 0-1

[Event "30th NATO Chess-ch 2019"]
[Site "Berlin"]
[Date "2019.09.17"]
[Round "3.7"]
[White "Watters, Chase"]
[Black "Fichtner, Ewald"]
[Result "1-0"]
[ECO "D00"]
[WhiteElo "2179"]
[BlackElo "2046"]
[Annotator "NA"]
[PlyCount "105"]
[EventDate "2019.09.16"]
[EventType "swiss"]
[EventCountry "GER"]
[SourceTitle "playchess.com"]
[Source "ChessBase"]
[SourceQuality "1"]
[TimeControl "40/7200:1800"]

1. d4 {[%emt 1:59:56]} d5 {[%emt 1:59:54]} 2. Bf4 {[%emt 1:59:53]} Nf6 {[%emt 1:59:47]} 3. e3 {[%emt 1:59:49]} c5 {[%emt 1:59:43]} 4. dxc5 {[%emt 1:58:14]} Qa5+ {[%emt 1:58:14]} 5. Nd2 {[%emt 1:58:06]} Nc6 {[%emt 1:58:06]} 6. a3 {[%emt 1:57:46]} Qxc5 {[%emt 1:46:34]} 7. b4 {[%emt 1:57:02]} Qb6 {[%emt 1:57:02]} 8. Ngf3 {[%emt 1:45:27]} g6 {[%emt 1:56:50]} 9. c4 {[%emt 1:56:44]} Be6 {[%emt 1:56:44]} 10. c5 {[%emt 1:35:51]} Qd8 {[%emt 1:32:55]} 11. b5 {[%emt 1:49:14]} Nb8 {[%emt 1:31:58]} 12. Nd4 {[%emt 1:48:49]} Qc8 {[%emt 1:25:56]} 13. c6 {[%emt 1:25:56]} Bg7 {[%emt 1:21:11]} 14. Rc1 {[%emt 1:30:10]} Nh5 {[%emt 1:30:10]} 15. Bxb8 {[%emt 1:23:06]} Rxb8 {[%emt 1:23:06]} 16. c7 {[%emt 1:16:56]} Ra8 {[%emt 1:16:52]} 17. Be2 {[%emt 1:21:57]} Nf6 {[%emt 1:15:38]} 18. O-O {[%emt 1:18:38]} O-O {[%emt 1:12:26]} 19. f4 {[%emt 1:12:26]} Qd7 {[%emt 1:17:20]} 20. N2b3 {[%emt 1:15:17]} b6 {[%emt 1:15:17]} 21. Rc6 {[%emt 1:08:17]} Rac8 {[%emt 1:05:36]} 22. Nxe6 {[%emt 1:10:44]} fxe6 {[%emt 1:05:27]} 23. Nd4 {[%emt 1:08:16]} Rxc7 {[%emt 0:58:43]} 24. Nxe6 Rxc6 {[%emt 1:06:14]} 25. Nxf8 {[%emt 1:06:09]} Kxf8 {[%emt 0:57:46]} 26. bxc6 {[%emt 1:05:23]} Qxc6 {[%emt 1:05:23]} 27. Bf3 {[%emt 0:57:30]} e6 {[%emt 0:55:55]} 28. Qc1 {[%emt 0:55:55]} Qb7 {[%emt 0:55:30]} 29. Qc2 {[%emt 0:57:35]} Nd7 {[%emt 0:57:35]} 30. e4 {[%emt 0:57:14]} Nc5 {[%emt 0:48:59]} 31. exd5 {[%emt 0:56:30]} exd5 {[%emt 0:48:21]} 32. f5 {[%emt 0:48:21]} Bd4+ {[%emt 0:56:19]} 33. Kh1 {[%emt 0:45:46]} Kg7 {[%emt 0:45:41]} 34. Rd1 {[%emt 0:54:34]} Qe7 {[%emt 0:54:34]} 35. fxg6 {[%emt 0:52:36]} hxg6 {[%emt 0:44:32]} 36. Bxd5 {[%emt 0:51:19]} Qe5 {[%emt 0:43:24]} 37. Bf3 {[%emt 0:43:24]} g5 {[%emt 0:45:57]} 38. Qc4 {[%emt 0:38:35]} Bb2 {[%emt 0:44:18]} 39. a4 {[%emt 0:41:13]} Ne6 {[%emt 0:34:47]} 40. Qe4 {[%emt 0:37:04]} Nc5 {[%emt 0:37:04]} 41. Qa8 {[%emt 0:32:58]} Qe7 {[%emt 0:32:20]} 42. Qc6 {[%emt 0:32:20]} Be5 {[%emt 0:31:21]} 43. h3 {[%emt 0:31:21]} Bb8 {[%emt 0:33:28]} 44. Bh5 {[%emt 0:30:38]} Bc7 {[%emt 0:30:38]} 45. Qg6+ {[%emt 0:26:53]} Kf8 {[%emt 0:26:37]} 46. Rf1+ {[%emt 0:26:27]} Bf4 {[%emt 0:26:30]} 47. g3 {[%emt 0:26:30]} Qd7 {[%emt 0:23:36]} 48. Kg2 {[%emt 0:23:36]} Qd2+ {[%emt 0:15:10]} 49. Rf2 {[%emt 0:22:48]} Qd5+ {[%emt 0:21:35]} 50. Bf3 {[%emt 0:14:06]} Qc4 {[%emt 0:20:34]} 51. Re2 {[%emt 0:20:34]} Qxa4 {[%emt 0:18:08]} 52. Qf6+ {[%emt 0:10:47]} Kg8 {[%emt 0:18:02]} 53. Bd5+ {[%emt 0:18:02]} 1-0

[Event "30th NATO Chess-ch 2019"]
[Site "Berlin"]
[Date "2019.09.17"]
[Round "3.8"]
[White "Kende, Gyorgy"]
[Black "Pavlidou, Ekaterini"]
[Result "1/2-1/2"]
[ECO "E29"]
[WhiteElo "2036"]
[BlackElo "2178"]
[Annotator "ChessBase"]
[PlyCount "57"]
[EventDate "2019.09.16"]
[EventType "swiss"]
[EventCountry "GER"]
[SourceTitle "playchess.com"]
[Source "ChessBase"]
[SourceQuality "1"]
[TimeControl "40/7200:1800"]

1. d4 {[%emt 2:00:00]} Nf6 {[%emt 1:59:30]} 2. c4 {[%emt 1:59:21]} e6 {[%emt 1:59:21]} 3. Nc3 {[%emt 1:59:14]} Bb4 {[%emt 1:59:04]} 4. a3 {[%emt 1:58:53]} Bxc3+ {[%emt 1:58:52]} 5. bxc3 {[%emt 1:58:51]} c5 {[%emt 1:58:51]} 6. e3 {[%emt 1:54:52]} Nc6 {[%emt 1:51:22]} 7. Bd3 {[%emt 1:51:22]} b6 {[%emt 1:47:48]} 8. Ne2 {[%emt 1:47:48]} O-O {[%emt 1:49:27]} 9. O-O {[%emt 1:41:10]} Ba6 {[%emt 1:39:15]} 10. e4 {[%emt 1:45:46]} Ne8 {[%emt 1:45:46]} 11. Ng3 {[%emt 1:36:18]} f6 {[%emt 1:36:18]} 12. f4 {[%emt 1:22:48]} Qe7 {[%emt 1:22:48]} 13. e5 {[%emt 1:24:10]} Na5 {[%emt 1:11:46]} 14. d5 {[%emt 1:11:46]} fxe5 {[%emt 0:54:25]} 15. Qh5 {[%emt 0:54:25]} e4 {[%emt 0:50:43]} 16. Nxe4 {[%emt 0:41:55]} g6 {[%emt 0:41:55]} 17. Qe2 {[%emt 0:37:20]} exd5 {[%emt 0:38:17]} 18. cxd5 {[%emt 0:33:49]} c4 {[%emt 0:33:49]} 19. Bc2 {[%emt 0:35:48]} Nd6 {[%emt 0:31:41]} 20. Qf3 {[%emt 0:27:08]} Nxe4 {[%emt 0:26:18]} 21. Bxe4 {[%emt 0:25:02]} Rae8 {[%emt 0:23:17]} 22. Bb1 {[%emt 0:21:42]} Bb7 {[%emt 0:21:42]} 23. f5 {[%emt 0:20:10]} Qc5+ {[%emt 0:20:10]} 24. Kh1 {[%emt 0:19:35]} Bxd5 {[%emt 0:13:09]} 25. Qd1 {[%emt 0:18:09]} Qc6 {[%emt 0:11:40]} 26. Ra2 {[%emt 0:15:26]} Nb3 {[%emt 0:06:11]} 27. Bh6 {[%emt 0:06:11]} Rf7 {[%emt 0:04:36]} 28. fxg6 {[%emt 0:09:40]} hxg6 {[%emt 0:09:40]} 29. Re2 {[%emt 0:04:37]} 1/2-1/2

[Event "30th NATO Chess-ch 2019"]
[Site "Berlin"]
[Date "2019.09.17"]
[Round "3.9"]
[White "Nikomanis, Andreas"]
[Black "Sypien, Mateusz"]
[Result "1/2-1/2"]
[ECO "B70"]
[WhiteElo "2053"]
[BlackElo "2243"]
[Annotator "NA"]
[PlyCount "44"]
[EventDate "2019.09.16"]
[EventType "swiss"]
[EventCountry "GER"]
[SourceTitle "playchess.com"]
[Source "ChessBase"]
[SourceQuality "1"]
[TimeControl "40/7200:1800"]

1. e4 {[%emt 2:00:00]} c5 {[%emt 1:55:13]} 2. Nf3 {[%emt 1:55:07]} Nc6 {[%emt 1:59:36]} 3. Nc3 {[%emt 1:59:36]} g6 {[%emt 1:59:07]} 4. d4 {[%emt 1:54:48]} cxd4 {[%emt 1:59:00]} 5. Nxd4 {[%emt 1:59:00]} Bg7 {[%emt 1:58:55]} 6. Nb3 {[%emt 1:54:40]} Nf6 {[%emt 1:57:26]} 7. Be2 {[%emt 1:53:13]} O-O {[%emt 1:53:13]} 8. Bg5 {[%emt 1:52:32]} d6 {[%emt 1:52:32]} 9. O-O {[%emt 1:49:04]} a6 {[%emt 1:47:19]} 10. f4 {[%emt 1:47:19]} Be6 {[%emt 1:29:37]} 11. Kh1 {[%emt 1:49:33]} Qc8 {[%emt 1:26:10]} 12. Bf3 {[%emt 1:26:10]} Re8 {[%emt 1:05:53]} 13. Nd5 {[%emt 1:42:06]} Nd7 {[%emt 1:05:12]} 14. c3 {[%emt 1:41:15]} Rb8 {[%emt 1:01:49]} 15. Qe1 {[%emt 1:34:03]} h6 {[%emt 0:59:06]} 16. Bh4 {[%emt 1:33:50]} Nc5 {[%emt 0:57:49]} 17. Rd1 {[%emt 1:27:33]} b5 {[%emt 0:53:33]} 18. Nxc5 {[%emt 1:25:04]} dxc5 {[%emt 0:52:47]} 19. Qe3 {[%emt 1:24:41]} c4 {[%emt 0:48:18]} 20. Rd2 {[%emt 0:48:18]} Bg4 {[%emt 0:42:10]} 21. Rfd1 {[%emt 1:10:00]} Bxf3 {[%emt 0:39:24]} 22. Qxf3 {[%emt 0:39:24]} Kf8 {[%emt 1:09:14]} 1/2-1/2

[Event "30th NATO Chess-ch 2019"]
[Site "Berlin"]
[Date "2019.09.17"]
[Round "3.10"]
[White "Randall, Gordon"]
[Black "Lakos, Nikoletta"]
[Result "1/2-1/2"]
[ECO "B07"]
[WhiteElo "1975"]
[BlackElo "2226"]
[Annotator "NA"]
[PlyCount "50"]
[EventDate "2019.09.16"]
[EventType "swiss"]
[EventCountry "GER"]
[SourceTitle "playchess.com"]
[Source "ChessBase"]
[SourceQuality "1"]
[TimeControl "40/7200:1800"]

1. d4 {[%emt 1:59:53]} d6 {[%emt 1:57:43]} 2. e4 {[%emt 1:57:43]} Nf6 {[%emt 1:56:50]} 3. f3 {[%emt 1:57:07]} c6 {[%emt 1:53:08]} 4. c4 {[%emt 1:53:08]} e5 {[%emt 1:54:25]} 5. Be3 {[%emt 1:44:58]} Be7 {[%emt 1:38:00]} 6. Nc3 {[%emt 1:41:07]} O-O {[%emt 1:27:36]} 7. d5 {[%emt 1:27:36]} Ne8 {[%emt 1:24:03]} 8. Qd2 {[%emt 1:24:03]} a6 {[%emt 1:15:05]} 9. O-O-O {[%emt 1:15:05]} c5 {[%emt 1:08:17]} 10. Kb1 {[%emt 1:08:17]} Qa5 {[%emt 0:58:51]} 11. Bd3 {[%emt 0:58:51]} b5 {[%emt 0:39:01]} 12. cxb5 {[%emt 1:08:53]} axb5 {[%emt 0:38:09]} 13. Bxb5 {[%emt 0:38:09]} Nc7 {[%emt 0:35:49]} 14. Bd3 {[%emt 0:55:31]} Ba6 {[%emt 0:55:31]} 15. Nge2 {[%emt 0:28:29]} Nd7 {[%emt 0:26:20]} 16. Nc1 {[%emt 0:42:37]} Rfb8 {[%emt 0:17:18]} 17. Rhf1 {[%emt 0:39:46]} Rb7 {[%emt 0:10:38]} 18. Rf2 {[%emt 0:10:38]} Rab8 {[%emt 0:09:55]} 19. Qe1 {[%emt 0:09:55]} Bxd3+ {[%emt 0:34:31]} 20. Nxd3 {[%emt 0:08:59]} c4 {[%emt 0:06:32]} 21. Nc1 {[%emt 0:06:32]} Qa3 {[%emt 0:06:03]} 22. Nb3 {[%emt 0:29:18]} Qa6 {[%emt 0:05:09]} 23. Nc1 {[%emt 0:28:10]} Qa3 {[%emt 0:04:47]} 24. Nb3 {[%emt 0:27:59]} Qa6 {[%emt 0:04:16]} 25. Nc1 {[%emt 0:27:50]} Qa3 {[%emt 0:02:56]} 1/2-1/2